[Event "Titled Tuesday Blitz November 14 Early 2023"]
[White "Erzhanov, Arman"]
[Black "crosky"]
[WhiteFideId "4138821"]
[WhiteElo "2502"]
[BlackElo "2247"]
[Result "1-0"]
[Round "2"]
[TimeControl "180+1"]
[Date "2023.11.14"]
[WhiteClock "0:00:50"]
[BlackClock "0:00:12"]
[Board "198"]

1. e4 {[%clk 0:03:00]}  Nc6 {[%clk 0:03:00]} 2. Nf3 {[%clk 0:03:00]}  d6 {[%clk 0:03:00]} 3. d4 {[%clk 0:02:59]}  g6 {[%clk 0:03:00]} 4. d5 {[%clk 0:02:59]}  Nb8 {[%clk 0:02:59]} 5. c4 {[%clk 0:02:58]}  Bg7 {[%clk 0:02:59]} 6. h3 {[%clk 0:02:57]}  c5 {[%clk 0:02:59]} 7. Nc3 {[%clk 0:02:56]}  e6 {[%clk 0:02:57]} 8. Be2 {[%clk 0:02:53]}  Nf6 {[%clk 0:02:49]} 9. O-O {[%clk 0:02:52]}  exd5 {[%clk 0:02:49]} 10. exd5 {[%clk 0:02:52]}  O-O {[%clk 0:02:49]} 11. Bd3 {[%clk 0:02:52]}  Re8 {[%clk 0:02:47]} 12. Bg5 {[%clk 0:02:52]}  Qc7 {[%clk 0:02:44]} 13. Nb5 {[%clk 0:02:50]}  Qb6 {[%clk 0:02:44]} 14. Bf4 {[%clk 0:02:50]}  Rd8 {[%clk 0:02:42]} 15. Re1 {[%clk 0:02:50]}  a6 {[%clk 0:02:39]} 16. Nc3 {[%clk 0:02:49]}  Nbd7 {[%clk 0:02:34]} 17. Qd2 {[%clk 0:02:44]}  Nh5 {[%clk 0:02:30]} 18. Bh2 {[%clk 0:02:44]}  Nf8 {[%clk 0:02:18]} 19. Re2 {[%clk 0:02:26]}  Qb4 {[%clk 0:02:18]} 20. Rae1 {[%clk 0:02:24]}  b5 {[%clk 0:02:06]} 21. a3 {[%clk 0:02:23]}  Qb3 {[%clk 0:02:04]} 22. Qg5 {[%clk 0:02:08]}  Bf6 {[%clk 0:01:59]} 23. Qh6 {[%clk 0:02:06]}  Bg7 {[%clk 0:01:58]} 24. Qg5 {[%clk 0:02:01]}  Bf6 {[%clk 0:01:59]} 25. Qc1 {[%clk 0:01:54]}  bxc4 {[%clk 0:01:50]} 26. Nd2 {[%clk 0:01:54]}  cxd3 {[%clk 0:01:42]} 27. Nxb3 {[%clk 0:01:49]}  dxe2 {[%clk 0:01:43]} 28. Rxe2 {[%clk 0:01:49]}  Bf5 {[%clk 0:01:43]} 29. Ne4 {[%clk 0:01:47]}  Bxe4 {[%clk 0:01:35]} 30. Rxe4 {[%clk 0:01:47]}  Rab8 {[%clk 0:01:34]} 31. Na5 {[%clk 0:01:32]}  Bxb2 {[%clk 0:01:07]} 32. Qd1 {[%clk 0:01:26]}  Bd4 {[%clk 0:00:52]} 33. Nc6 {[%clk 0:01:22]}  Re8 {[%clk 0:00:53]} 34. Rxd4 {[%clk 0:01:13]}  cxd4 {[%clk 0:00:48]} 35. Nxb8 {[%clk 0:01:13]}  Rxb8 {[%clk 0:00:49]} 36. Bxd6 {[%clk 0:01:13]}  Rd8 {[%clk 0:00:43]} 37. Bxf8 {[%clk 0:01:13]}  Kxf8 {[%clk 0:00:44]} 38. Qxd4 {[%clk 0:01:13]}  Ng7 {[%clk 0:00:37]} 39. Qc5+ {[%clk 0:01:07]}  Kg8 {[%clk 0:00:36]} 40. g4 {[%clk 0:01:08]}  h5 {[%clk 0:00:35]} 41. Kg2 {[%clk 0:01:06]}  hxg4 {[%clk 0:00:34]} 42. hxg4 {[%clk 0:01:07]}  Ne8 {[%clk 0:00:34]} 43. Qa5 {[%clk 0:01:04]}  Rd6 {[%clk 0:00:33]} 44. g5 {[%clk 0:01:03]}  Kf8 {[%clk 0:00:33]} 45. Kf3 {[%clk 0:01:03]}  Ke7 {[%clk 0:00:34]} 46. Ke4 {[%clk 0:01:03]}  Ng7 {[%clk 0:00:27]} 47. Qc7+ {[%clk 0:01:02]}  Rd7 {[%clk 0:00:28]} 48. Qe5+ {[%clk 0:00:57]}  Kf8 {[%clk 0:00:28]} 49. Qb8+ {[%clk 0:00:56]}  Ke7 {[%clk 0:00:28]} 50. Ke5 {[%clk 0:00:54]}  Nf5 {[%clk 0:00:24]} 51. Qb4+ {[%clk 0:00:53]}  Ke8 {[%clk 0:00:21]} 52. f4 {[%clk 0:00:51]}  Nd6 {[%clk 0:00:12]} 53. Qxd6 {[%clk 0:00:50]} 1-0


[Site "https://www.chess.com"]

[Event "Titled Tuesday Blitz November 14 Early 2023"]
[White "Akylbek2021"]
[Black "Srdanovic, Jovana"]
[BlackFideId "954810"]
[WhiteElo "2239"]
[BlackElo "2500"]
[Result "0-1"]
[Round "2"]
[TimeControl "180+1"]
[Date "2023.11.14"]
[WhiteClock "0:00:02"]
[BlackClock "0:01:11"]
[Board "201"]

1. e4 {[%clk 0:02:52]}  c5 {[%clk 0:02:58]} 2. Nf3 {[%clk 0:02:52]}  Nf6 {[%clk 0:02:58]} 3. Nc3 {[%clk 0:02:51]}  d5 {[%clk 0:02:58]} 4. exd5 {[%clk 0:02:47]}  Nxd5 {[%clk 0:02:57]} 5. Bc4 {[%clk 0:02:38]}  Nb6 {[%clk 0:02:55]} 6. Bb5+ {[%clk 0:02:35]}  Bd7 {[%clk 0:02:48]} 7. Be2 {[%clk 0:02:34]}  Nc6 {[%clk 0:02:47]} 8. O-O {[%clk 0:02:26]}  e6 {[%clk 0:02:45]} 9. d4 {[%clk 0:02:26]}  cxd4 {[%clk 0:02:45]} 10. Nxd4 {[%clk 0:02:27]}  Be7 {[%clk 0:02:44]} 11. Bf3 {[%clk 0:02:21]}  O-O {[%clk 0:02:37]} 12. Nxc6 {[%clk 0:02:21]}  Bxc6 {[%clk 0:02:37]} 13. Bxc6 {[%clk 0:02:21]}  bxc6 {[%clk 0:02:38]} 14. Bf4 {[%clk 0:02:18]}  Nd5 {[%clk 0:02:38]} 15. Bd2 {[%clk 0:02:01]}  Bf6 {[%clk 0:02:34]} 16. Qf3 {[%clk 0:01:54]}  Qb6 {[%clk 0:02:33]} 17. Rab1 {[%clk 0:01:42]}  Rfd8 {[%clk 0:02:30]} 18. Ne4 {[%clk 0:01:25]}  Be7 {[%clk 0:02:26]} 19. c4 {[%clk 0:01:19]}  Nf6 {[%clk 0:02:24]} 20. Bc3 {[%clk 0:01:16]}  Nxe4 {[%clk 0:02:16]} 21. Qxe4 {[%clk 0:01:16]}  Qc5 {[%clk 0:02:16]} 22. Qg4 {[%clk 0:01:08]}  Bf8 {[%clk 0:02:15]} 23. b4 {[%clk 0:01:05]}  Qd6 {[%clk 0:02:13]} 24. Rfd1 {[%clk 0:01:02]}  Qc7 {[%clk 0:02:07]} 25. h4 {[%clk 0:00:59]}  Rxd1+ {[%clk 0:02:07]} 26. Rxd1 {[%clk 0:00:59]}  Rd8 {[%clk 0:02:07]} 27. h5 {[%clk 0:00:54]}  h6 {[%clk 0:02:07]} 28. a4 {[%clk 0:00:41]}  Rxd1+ {[%clk 0:02:06]} 29. Qxd1 {[%clk 0:00:41]}  Qf4 {[%clk 0:02:07]} 30. Qd3 {[%clk 0:00:34]}  Qc1+ {[%clk 0:02:04]} 31. Kh2 {[%clk 0:00:33]}  Qg5 {[%clk 0:02:04]} 32. Qf3 {[%clk 0:00:26]}  Bd6+ {[%clk 0:02:02]} 33. g3 {[%clk 0:00:25]}  Qh4+ {[%clk 0:01:45]} 34. Kg2 {[%clk 0:00:23]}  Qxc4 {[%clk 0:01:45]} 35. b5 {[%clk 0:00:10]}  cxb5 {[%clk 0:01:43]} 36. axb5 {[%clk 0:00:10]}  Qxb5 {[%clk 0:01:42]} 37. Qa8+ {[%clk 0:00:10]}  Kh7 {[%clk 0:01:41]} 38. Qe4+ {[%clk 0:00:05]}  Qf5 {[%clk 0:01:29]} 39. Qd4 {[%clk 0:00:05]}  Qd5+ {[%clk 0:01:26]} 40. Qxd5 {[%clk 0:00:05]}  exd5 {[%clk 0:01:27]} 41. Kf3 {[%clk 0:00:04]}  f6 {[%clk 0:01:24]} 42. g4 {[%clk 0:00:05]}  Kg8 {[%clk 0:01:25]} 43. Ke3 {[%clk 0:00:04]}  Kf7 {[%clk 0:01:24]} 44. Ba5 {[%clk 0:00:04]}  Ke6 {[%clk 0:01:24]} 45. f4 {[%clk 0:00:05]}  Bc5+ {[%clk 0:01:24]} 46. Kd3 {[%clk 0:00:03]}  Bb6 {[%clk 0:01:24]} 47. Bc3 {[%clk 0:00:03]}  a5 {[%clk 0:01:24]} 48. f5+ {[%clk 0:00:04]}  Kd6 {[%clk 0:01:24]} 49. Bb2 {[%clk 0:00:04]}  d4 {[%clk 0:01:22]} 50. Ba3+ {[%clk 0:00:02]}  Bc5 {[%clk 0:01:23]} 51. Bc1 {[%clk 0:00:03]}  Kd5 {[%clk 0:01:22]} 52. Bf4 {[%clk 0:00:02]}  a4 {[%clk 0:01:22]} 53. Bc1 {[%clk 0:00:02]}  a3 {[%clk 0:01:22]} 54. Kd2 {[%clk 0:00:01]}  Kc4 {[%clk 0:01:22]} 55. Ke2 {[%clk 0:00:01]}  Bb4 {[%clk 0:01:21]} 56. Kf3 {[%clk 0:00:02]}  d3 {[%clk 0:01:21]} 57. Ke4 {[%clk 0:00:02]}  d2 {[%clk 0:01:21]} 58. Bxd2 {[%clk 0:00:03]}  Bxd2 {[%clk 0:01:21]} 59. g5 {[%clk 0:00:04]}  hxg5 {[%clk 0:01:20]} 60. h6 {[%clk 0:00:04]}  gxh6 {[%clk 0:01:21]} 61. Kf3 {[%clk 0:00:04]}  h5 {[%clk 0:01:19]} 62. Kg3 {[%clk 0:00:04]}  a2 {[%clk 0:01:20]} 63. Kg2 {[%clk 0:00:05]}  a1=Q {[%clk 0:01:19]} 64. Kf3 {[%clk 0:00:02]}  Qe5 {[%clk 0:01:11]} 0-1


[Site "https://www.chess.com"]

[Event "Titled Tuesday Blitz November 14 Early 2023"]
[White "Mihajlovskij, Sergei"]
[Black "Toktomushev, Teimur"]
[WhiteFideId "13500805"]
[BlackFideId "14176726"]
[WhiteElo "2237"]
[BlackElo "2498"]
[Result "0-1"]
[Round "2"]
[TimeControl "180+1"]
[Date "2023.11.14"]
[WhiteClock "0:01:10"]
[BlackClock "0:00:05"]
[Board "203"]

1. e4 {[%clk 0:03:00]}  c5 {[%clk 0:02:57]} 2. Nf3 {[%clk 0:02:55]}  e6 {[%clk 0:02:55]} 3. g3 {[%clk 0:02:54]}  d5 {[%clk 0:02:54]} 4. exd5 {[%clk 0:02:55]}  exd5 {[%clk 0:02:55]} 5. Bg2 {[%clk 0:02:56]}  Nf6 {[%clk 0:02:45]} 6. d4 {[%clk 0:02:55]}  Nc6 {[%clk 0:02:37]} 7. O-O {[%clk 0:02:55]}  Be7 {[%clk 0:02:38]} 8. Nc3 {[%clk 0:02:46]}  O-O {[%clk 0:02:18]} 9. a3 {[%clk 0:02:45]}  Bg4 {[%clk 0:02:11]} 10. dxc5 {[%clk 0:02:45]}  Bxc5 {[%clk 0:02:11]} 11. b4 {[%clk 0:02:45]}  Bd4 {[%clk 0:01:43]} 12. Bb2 {[%clk 0:02:45]}  Ne4 {[%clk 0:01:41]} 13. Na4 {[%clk 0:01:55]}  Bxb2 {[%clk 0:01:41]} 14. Nxb2 {[%clk 0:01:56]}  Ne5 {[%clk 0:00:32]} 15. h3 {[%clk 0:01:33]}  Bxf3 {[%clk 0:00:22]} 16. Bxf3 {[%clk 0:01:29]}  Nc3 {[%clk 0:00:17]} 17. Bxd5 {[%clk 0:01:16]}  Nxd1 {[%clk 0:00:15]} 18. Raxd1 {[%clk 0:01:17]}  Qf6 {[%clk 0:00:15]} 19. Kg2 {[%clk 0:01:12]}  Rad8 {[%clk 0:00:11]} 20. c4 {[%clk 0:01:12]}  b6 {[%clk 0:00:10]} 21. Nd3 {[%clk 0:01:11]}  Nxd3 {[%clk 0:00:06]} 22. Rxd3 {[%clk 0:01:12]}  h5 {[%clk 0:00:05]} 23. Rfd1 {[%clk 0:01:10]}  g6 {[%clk 0:00:05]} 24. h4 {[%clk 0:01:09]}  Kg7 {[%clk 0:00:05]} 25. Rf3 {[%clk 0:01:10]}  Qe7 {[%clk 0:00:05]} 26. Re3 {[%clk 0:01:09]}  Qf6 {[%clk 0:00:05]} 27. Rde1 {[%clk 0:01:08]}  Qb2 {[%clk 0:00:04]} 28. R1e2 {[%clk 0:01:08]}  Qc1 {[%clk 0:00:04]} 29. Re1 {[%clk 0:01:07]}  Qd2 {[%clk 0:00:04]} 30. R1e2 {[%clk 0:01:07]}  Rxd5 {[%clk 0:00:05]} 31. cxd5 {[%clk 0:01:06]}  Qxd5+ {[%clk 0:00:06]} 32. Kh2 {[%clk 0:01:06]}  Rc8 {[%clk 0:00:06]} 33. Re7 {[%clk 0:01:03]}  Rc1 {[%clk 0:00:05]} 34. Re1 {[%clk 0:01:04]}  Rxe1 {[%clk 0:00:05]} 35. Rxe1 {[%clk 0:01:05]}  Qf3 {[%clk 0:00:06]} 36. Kg1 {[%clk 0:01:05]}  Qxa3 {[%clk 0:00:06]} 37. Re4 {[%clk 0:01:05]}  Qb3 {[%clk 0:00:06]} 38. Rf4 {[%clk 0:01:06]}  a5 {[%clk 0:00:06]} 39. bxa5 {[%clk 0:01:07]}  bxa5 {[%clk 0:00:07]} 40. Kg2 {[%clk 0:01:07]}  a4 {[%clk 0:00:07]} 41. g4 {[%clk 0:01:07]}  a3 {[%clk 0:00:07]} 42. gxh5 {[%clk 0:01:08]}  a2 {[%clk 0:00:07]} 43. h6+ {[%clk 0:01:09]}  Kxh6 {[%clk 0:00:07]} 44. Rxf7 {[%clk 0:01:09]}  Qxf7 {[%clk 0:00:06]} 45. Kh2 {[%clk 0:01:09]}  a1=Q {[%clk 0:00:07]} 46. f3 {[%clk 0:01:10]}  Qxf3 {[%clk 0:00:05]} 47. h5 {[%clk 0:01:10]}  Qah1# {[%clk 0:00:05]} 0-1


[Site "https://www.chess.com"]

[Event "Titled Tuesday Blitz November 14 Early 2023"]
[White "Sokac, Marko"]
[Black "Faci, Fadil"]
[WhiteFideId "14531356"]
[BlackFideId "4645162"]
[WhiteElo "2498"]
[BlackElo "2235"]
[Result "1/2-1/2"]
[Round "2"]
[TimeControl "180+1"]
[Date "2023.11.14"]
[WhiteClock "0:00:11"]
[BlackClock "0:00:20"]
[Board "204"]

1. e4 {[%clk 0:03:00]}  c5 {[%clk 0:02:59]} 2. a3 {[%clk 0:02:58]}  e6 {[%clk 0:02:58]} 3. b4 {[%clk 0:02:57]}  cxb4 {[%clk 0:02:58]} 4. axb4 {[%clk 0:02:58]}  Bxb4 {[%clk 0:02:58]} 5. c3 {[%clk 0:02:59]}  Be7 {[%clk 0:02:58]} 6. d4 {[%clk 0:02:59]}  d5 {[%clk 0:02:57]} 7. e5 {[%clk 0:02:59]}  Nc6 {[%clk 0:02:56]} 8. Bd3 {[%clk 0:02:58]}  a6 {[%clk 0:02:55]} 9. Nf3 {[%clk 0:02:58]}  Bd7 {[%clk 0:02:55]} 10. O-O {[%clk 0:02:57]}  b5 {[%clk 0:02:48]} 11. Nbd2 {[%clk 0:02:57]}  Na5 {[%clk 0:02:48]} 12. h3 {[%clk 0:02:50]}  Rc8 {[%clk 0:02:48]} 13. Bb2 {[%clk 0:02:49]}  Qb6 {[%clk 0:02:43]} 14. Nh2 {[%clk 0:02:47]}  Nc4 {[%clk 0:02:43]} 15. Bxc4 {[%clk 0:02:44]}  dxc4 {[%clk 0:02:41]} 16. Qf3 {[%clk 0:02:26]}  Bc6 {[%clk 0:02:41]} 17. Qg3 {[%clk 0:02:26]}  g6 {[%clk 0:02:41]} 18. f4 {[%clk 0:02:26]}  Nh6 {[%clk 0:02:41]} 19. Kh1 {[%clk 0:02:25]}  Nf5 {[%clk 0:02:41]} 20. Qf2 {[%clk 0:02:25]}  h5 {[%clk 0:02:41]} 21. Nhf3 {[%clk 0:02:16]}  h4 {[%clk 0:02:35]} 22. Kg1 {[%clk 0:02:16]}  Bd5 {[%clk 0:02:28]} 23. Rfe1 {[%clk 0:02:11]}  b4 {[%clk 0:02:27]} 24. Ne4 {[%clk 0:02:07]}  a5 {[%clk 0:02:16]} 25. Nf6+ {[%clk 0:02:06]}  Bxf6 {[%clk 0:02:15]} 26. exf6 {[%clk 0:02:07]}  a4 {[%clk 0:02:12]} 27. cxb4 {[%clk 0:02:04]}  c3 {[%clk 0:02:12]} 28. Ba3 {[%clk 0:02:03]}  Bxf3 {[%clk 0:02:06]} 29. Qxf3 {[%clk 0:02:04]}  Nxd4 {[%clk 0:02:05]} 30. Qf2 {[%clk 0:02:01]}  Rb8 {[%clk 0:01:48]} 31. Kh2 {[%clk 0:01:46]}  Nb3 {[%clk 0:01:40]} 32. Ra2 {[%clk 0:01:40]}  Qxf2 {[%clk 0:01:37]} 33. Rxf2 {[%clk 0:01:41]}  O-O {[%clk 0:01:37]} 34. Rc2 {[%clk 0:01:37]}  Rfc8 {[%clk 0:01:26]} 35. Re3 {[%clk 0:01:37]}  Rc4 {[%clk 0:01:26]} 36. Rexc3 {[%clk 0:01:35]}  Rxf4 {[%clk 0:01:24]} 37. Rc8+ {[%clk 0:01:34]}  Rxc8 {[%clk 0:01:25]} 38. Rxc8+ {[%clk 0:01:34]}  Kh7 {[%clk 0:01:26]} 39. Ra8 {[%clk 0:01:34]}  Nd4 {[%clk 0:01:14]} 40. Rxa4 {[%clk 0:01:31]}  Nf5 {[%clk 0:01:14]} 41. Ra7 {[%clk 0:01:10]}  Ng3 {[%clk 0:01:13]} 42. Rxf7+ {[%clk 0:01:10]}  Kg8 {[%clk 0:01:13]} 43. Rg7+ {[%clk 0:01:04]}  Kh8 {[%clk 0:01:14]} 44. Rxg6 {[%clk 0:01:02]}  Kh7 {[%clk 0:01:10]} 45. Rg4 {[%clk 0:00:54]}  Nf1+ {[%clk 0:01:03]} 46. Kg1 {[%clk 0:00:53]}  Rxf6 {[%clk 0:01:03]} 47. Rxh4+ {[%clk 0:00:52]}  Kg6 {[%clk 0:01:04]} 48. b5 {[%clk 0:00:47]}  Ne3 {[%clk 0:01:04]} 49. b6 {[%clk 0:00:46]}  Rf7 {[%clk 0:01:04]} 50. Bd6 {[%clk 0:00:42]}  Rb7 {[%clk 0:01:02]} 51. Bc7 {[%clk 0:00:40]}  Nd5 {[%clk 0:01:02]} 52. Rc4 {[%clk 0:00:30]}  Nxb6 {[%clk 0:00:35]} 53. Rc6 {[%clk 0:00:29]}  Nd5 {[%clk 0:00:32]} 54. Be5 {[%clk 0:00:14]}  Kf5 {[%clk 0:00:30]} 55. Bd4 {[%clk 0:00:14]}  Rb4 {[%clk 0:00:28]} 56. g4+ {[%clk 0:00:14]}  Ke4 {[%clk 0:00:24]} 57. Bf2 {[%clk 0:00:15]}  e5 {[%clk 0:00:20]} 58. Bg3 {[%clk 0:00:13]}  Nf4 {[%clk 0:00:20]} 59. Bxf4 {[%clk 0:00:13]}  Kxf4 {[%clk 0:00:20]} 60. Rc3 {[%clk 0:00:14]}  Rb2 {[%clk 0:00:19]} 61. Ra3 {[%clk 0:00:12]}  e4 {[%clk 0:00:19]} 62. Rc3 {[%clk 0:00:12]}  Ra2 {[%clk 0:00:20]} 63. Kf1 {[%clk 0:00:11]}  Rh2 {[%clk 0:00:19]} 64. Kg1 {[%clk 0:00:10]}  Ra2 {[%clk 0:00:20]} 65. Kf1 {[%clk 0:00:10]}  Rh2 {[%clk 0:00:20]} 66. Kg1 {[%clk 0:00:11]}  Ra2 {[%clk 0:00:20]} 1/2-1/2


[Site "https://www.chess.com"]

[Event "Titled Tuesday Blitz November 14 Early 2023"]
[White "Silvestre, Christian"]
[Black "Sadovsky, Artem"]
[WhiteFideId "30956269"]
[BlackFideId "4155840"]
[WhiteElo "2235"]
[BlackElo "2496"]
[Result "0-1"]
[Round "2"]
[TimeControl "180+1"]
[Date "2023.11.14"]
[WhiteClock "0:00:07"]
[BlackClock "0:00:46"]
[Board "205"]

1. e4 {[%clk 0:03:00]}  g6 {[%clk 0:02:38]} 2. d4 {[%clk 0:02:59]}  Bg7 {[%clk 0:02:39]} 3. c4 {[%clk 0:02:58]}  d6 {[%clk 0:02:35]} 4. Nc3 {[%clk 0:02:57]}  e5 {[%clk 0:02:36]} 5. dxe5 {[%clk 0:02:56]}  dxe5 {[%clk 0:02:36]} 6. Qxd8+ {[%clk 0:02:56]}  Kxd8 {[%clk 0:02:37]} 7. Be3 {[%clk 0:02:51]}  Be6 {[%clk 0:02:36]} 8. O-O-O+ {[%clk 0:02:51]}  Nd7 {[%clk 0:02:37]} 9. f4 {[%clk 0:02:37]}  exf4 {[%clk 0:02:30]} 10. Bxf4 {[%clk 0:02:38]}  Bh6 {[%clk 0:02:30]} 11. g3 {[%clk 0:02:29]}  c6 {[%clk 0:02:30]} 12. Nf3 {[%clk 0:02:22]}  Ke7 {[%clk 0:02:10]} 13. Re1 {[%clk 0:01:55]}  Bg4 {[%clk 0:01:52]} 14. Nd2 {[%clk 0:01:41]}  Rd8 {[%clk 0:01:36]} 15. h3 {[%clk 0:01:35]}  Be6 {[%clk 0:01:31]} 16. Bxh6 {[%clk 0:01:21]}  Nxh6 {[%clk 0:01:30]} 17. Nd5+ {[%clk 0:01:13]}  Kd6 {[%clk 0:01:20]} 18. Nb3 {[%clk 0:00:37]}  cxd5 {[%clk 0:01:16]} 19. cxd5 {[%clk 0:00:37]}  Ne5 {[%clk 0:01:15]} 20. dxe6 {[%clk 0:00:37]}  Rc8+ {[%clk 0:01:14]} 21. Kb1 {[%clk 0:00:35]}  Kxe6 {[%clk 0:01:14]} 22. h4 {[%clk 0:00:29]}  Ke7 {[%clk 0:01:05]} 23. Bh3 {[%clk 0:00:20]}  Rc7 {[%clk 0:01:05]} 24. Rhf1 {[%clk 0:00:19]}  Rd8 {[%clk 0:01:04]} 25. a3 {[%clk 0:00:17]}  f6 {[%clk 0:01:05]} 26. Ka2 {[%clk 0:00:16]}  Nhf7 {[%clk 0:01:05]} 27. Rd1 {[%clk 0:00:14]}  Rxd1 {[%clk 0:01:04]} 28. Rxd1 {[%clk 0:00:15]}  Nd6 {[%clk 0:01:04]} 29. Bg2 {[%clk 0:00:13]}  Rc2 {[%clk 0:01:02]} 30. Bh1 {[%clk 0:00:12]}  Ndc4 {[%clk 0:01:01]} 31. Rb1 {[%clk 0:00:10]}  Nd3 {[%clk 0:01:01]} 32. Nd4 {[%clk 0:00:09]}  Nc1+ {[%clk 0:00:45]} 33. Ka1 {[%clk 0:00:08]}  Nd2 {[%clk 0:00:46]} 34. Nxc2 {[%clk 0:00:07]}  Ndb3# {[%clk 0:00:46]} 0-1


[Site "https://www.chess.com"]

[Event "Titled Tuesday Blitz November 14 Early 2023"]
[White "Zomorrodian, Eilia"]
[Black "VitaliyChayka"]
[WhiteFideId "12551805"]
[WhiteElo "2487"]
[BlackElo "2226"]
[Result "1-0"]
[Round "2"]
[TimeControl "180+1"]
[Date "2023.11.14"]
[WhiteClock "0:00:59"]
[BlackClock "0:00:16"]
[Board "208"]

1. e4 {[%clk 0:03:00]}  d6 {[%clk 0:02:59]} 2. d4 {[%clk 0:03:01]}  Nf6 {[%clk 0:03:00]} 3. Nc3 {[%clk 0:03:01]}  e5 {[%clk 0:03:00]} 4. Nf3 {[%clk 0:03:01]}  Nbd7 {[%clk 0:03:00]} 5. Bc4 {[%clk 0:03:01]}  Be7 {[%clk 0:03:00]} 6. O-O {[%clk 0:03:01]}  O-O {[%clk 0:03:00]} 7. h3 {[%clk 0:03:00]}  c6 {[%clk 0:03:00]} 8. a4 {[%clk 0:03:00]}  a5 {[%clk 0:03:01]} 9. Re1 {[%clk 0:02:45]}  exd4 {[%clk 0:03:01]} 10. Qxd4 {[%clk 0:02:35]}  Nc5 {[%clk 0:03:02]} 11. e5 {[%clk 0:02:19]}  dxe5 {[%clk 0:03:00]} 12. Qxe5 {[%clk 0:02:20]}  Bd6 {[%clk 0:02:55]} 13. Qd4 {[%clk 0:02:14]}  Be6 {[%clk 0:02:35]} 14. Bg5 {[%clk 0:02:11]}  Bxc4 {[%clk 0:02:25]} 15. Qxc4 {[%clk 0:02:11]}  Ne6 {[%clk 0:02:09]} 16. Rxe6 {[%clk 0:02:10]}  fxe6 {[%clk 0:02:10]} 17. Qxe6+ {[%clk 0:02:10]}  Rf7 {[%clk 0:02:10]} 18. Rd1 {[%clk 0:02:08]}  Qb6 {[%clk 0:01:27]} 19. Rxd6 {[%clk 0:02:00]}  Re8 {[%clk 0:01:21]} 20. Qb3 {[%clk 0:01:53]}  Qc5 {[%clk 0:01:16]} 21. Rd3 {[%clk 0:01:43]}  Kf8 {[%clk 0:01:00]} 22. Be3 {[%clk 0:01:42]}  Qh5 {[%clk 0:00:56]} 23. Ne2 {[%clk 0:01:22]}  Ne4 {[%clk 0:00:51]} 24. Ng3 {[%clk 0:01:02]}  Qg6 {[%clk 0:00:37]} 25. Nxe4 {[%clk 0:00:59]}  Qxe4 {[%clk 0:00:33]} 26. Bc5+ {[%clk 0:00:58]}  Kg8 {[%clk 0:00:16]} 27. Re3 {[%clk 0:00:59]} 1-0


[Site "https://www.chess.com"]

[Event "Titled Tuesday Blitz November 14 Early 2023"]
[White "Skibbe, Willi"]
[Black "Omariev, Maksim"]
[WhiteFideId "4682190"]
[BlackFideId "4193423"]
[WhiteElo "2218"]
[BlackElo "2481"]
[Result "1-0"]
[Round "2"]
[TimeControl "180+1"]
[Date "2023.11.14"]
[WhiteClock "0:00:22"]
[BlackClock "0:00:12"]
[Board "210"]

1. e4 {[%clk 0:02:58]}  c5 {[%clk 0:00:40]} 2. c3 {[%clk 0:02:56]}  Nf6 {[%clk 0:00:40]} 3. e5 {[%clk 0:02:55]}  Nd5 {[%clk 0:00:40]} 4. Nf3 {[%clk 0:02:56]}  Nc6 {[%clk 0:00:40]} 5. Bc4 {[%clk 0:02:56]}  e6 {[%clk 0:00:40]} 6. O-O {[%clk 0:02:52]}  Be7 {[%clk 0:00:39]} 7. d4 {[%clk 0:02:51]}  cxd4 {[%clk 0:00:37]} 8. cxd4 {[%clk 0:02:51]}  d6 {[%clk 0:00:37]} 9. Qe2 {[%clk 0:02:48]}  O-O {[%clk 0:00:37]} 10. Rd1 {[%clk 0:02:48]}  a6 {[%clk 0:00:30]} 11. a3 {[%clk 0:02:32]}  b5 {[%clk 0:00:28]} 12. Bd3 {[%clk 0:02:19]}  Bb7 {[%clk 0:00:27]} 13. Nc3 {[%clk 0:02:17]}  Nxc3 {[%clk 0:00:24]} 14. bxc3 {[%clk 0:02:16]}  dxe5 {[%clk 0:00:25]} 15. dxe5 {[%clk 0:02:00]}  Qc7 {[%clk 0:00:20]} 16. Bg5 {[%clk 0:01:32]}  Rfd8 {[%clk 0:00:20]} 17. h4 {[%clk 0:01:25]}  Na5 {[%clk 0:00:17]} 18. Bxe7 {[%clk 0:00:59]}  Qxe7 {[%clk 0:00:11]} 19. Bxh7+ {[%clk 0:00:21]}  Kxh7 {[%clk 0:00:12]} 20. Ng5+ {[%clk 0:00:21]}  Kh6 {[%clk 0:00:12]} 21. Qe3 {[%clk 0:00:21]}  Nc4 {[%clk 0:00:12]} 22. Nxf7+ {[%clk 0:00:19]}  Kh7 {[%clk 0:00:10]} 23. Rxd8 {[%clk 0:00:13]}  Nxe3 {[%clk 0:00:09]} 24. Ng5+ {[%clk 0:00:12]}  Kg6 {[%clk 0:00:09]} 25. Rd6 {[%clk 0:00:09]}  Bd5 {[%clk 0:00:03]} 26. fxe3 {[%clk 0:00:09]}  Rd8 {[%clk 0:00:03]} 27. e4 {[%clk 0:00:08]}  Rxd6 {[%clk 0:00:03]} 28. exd6 {[%clk 0:00:09]}  Qxd6 {[%clk 0:00:04]} 29. exd5 {[%clk 0:00:10]}  exd5 {[%clk 0:00:04]} 30. Re1 {[%clk 0:00:10]}  Qg3 {[%clk 0:00:04]} 31. Re6+ {[%clk 0:00:10]}  Kh5 {[%clk 0:00:04]} 32. Nf3 {[%clk 0:00:07]}  Qc7 {[%clk 0:00:04]} 33. Re5+ {[%clk 0:00:08]}  Kh6 {[%clk 0:00:04]} 34. Rxd5 {[%clk 0:00:08]}  Qxc3 {[%clk 0:00:04]} 35. Rd6+ {[%clk 0:00:08]}  Kh7 {[%clk 0:00:04]} 36. Rxa6 {[%clk 0:00:09]}  Qc1+ {[%clk 0:00:04]} 37. Kh2 {[%clk 0:00:10]}  Qf4+ {[%clk 0:00:04]} 38. Kh3 {[%clk 0:00:10]}  Qc4 {[%clk 0:00:04]} 39. Ng5+ {[%clk 0:00:10]}  Kh8 {[%clk 0:00:03]} 40. Ra8+ {[%clk 0:00:11]}  Qg8 {[%clk 0:00:03]} 41. Rxg8+ {[%clk 0:00:11]}  Kxg8 {[%clk 0:00:04]} 42. Ne4 {[%clk 0:00:11]}  Kf7 {[%clk 0:00:04]} 43. Nd6+ {[%clk 0:00:12]}  Ke6 {[%clk 0:00:05]} 44. Nxb5 {[%clk 0:00:13]}  Kd5 {[%clk 0:00:06]} 45. Nc3+ {[%clk 0:00:13]}  Kc4 {[%clk 0:00:06]} 46. a4 {[%clk 0:00:14]}  Kb4 {[%clk 0:00:07]} 47. Nd5+ {[%clk 0:00:14]}  Kxa4 {[%clk 0:00:07]} 48. Kg4 {[%clk 0:00:15]}  Kb5 {[%clk 0:00:08]} 49. Nf4 {[%clk 0:00:15]}  Kc5 {[%clk 0:00:08]} 50. Kg5 {[%clk 0:00:16]}  Kd6 {[%clk 0:00:08]} 51. Kg6 {[%clk 0:00:17]}  Ke5 {[%clk 0:00:09]} 52. g3 {[%clk 0:00:17]}  Ke4 {[%clk 0:00:08]} 53. Kxg7 {[%clk 0:00:18]}  Kf5 {[%clk 0:00:09]} 54. h5 {[%clk 0:00:18]}  Kg5 {[%clk 0:00:10]} 55. h6 {[%clk 0:00:19]}  Kg4 {[%clk 0:00:10]} 56. h7 {[%clk 0:00:20]}  Kg5 {[%clk 0:00:10]} 57. Ng6 {[%clk 0:00:20]}  Kg4 {[%clk 0:00:11]} 58. h8=Q {[%clk 0:00:21]}  Kg5 {[%clk 0:00:12]} 59. Qh4+ {[%clk 0:00:21]}  Kf5 {[%clk 0:00:12]} 60. Qf4+ {[%clk 0:00:22]}  Ke6 {[%clk 0:00:13]} 61. Qe5+ {[%clk 0:00:23]}  Kd7 {[%clk 0:00:13]} 62. Nf4 {[%clk 0:00:21]}  Kc6 {[%clk 0:00:14]} 63. Qd4 {[%clk 0:00:21]}  Kb5 {[%clk 0:00:14]} 64. Qc3 {[%clk 0:00:22]}  Ka4 {[%clk 0:00:13]} 65. Qb2 {[%clk 0:00:22]}  Ka5 {[%clk 0:00:13]} 66. Nd5 {[%clk 0:00:23]}  Ka6 {[%clk 0:00:12]} 67. Qb6# {[%clk 0:00:22]} 1-0


[Site "https://www.chess.com"]